{"text_format":"3","workbook":"xlsx","n_sheets":1,"sheets":["AUSSTATTUNGSBESTANDSLISTE"],"not_rendered":{"defined_names":5},"read":"whole","date_system":"1900"}

{"sheet":"AUSSTATTUNGSBESTANDSLISTE","index":0,"n_rows":9,"n_cols":19,"rows_kept":9,"merged":[[0,1,0,5],[0,6,0,9],[0,10,0,12],[0,13,0,14],[2,1,2,6],[2,7,2,18]]}
[null,"AUSSTATTUNGSBESTANDSLISTE"]
[]
[null,"PHYSISCHER ZUSTAND",{"$nulls":5},"FINANZSTATUS"]
[null,"Bestands- oder Seriennummer","Artikelbeschreibung (Marke und Modell)","Standort","Zustand","Anbieter","Verbleibende Betriebszeit (Jahre) ","Anfangswert","Anzahlung","Kauf- oder\nMietdatum","Kreditlaufzeit\nin Jahren","Kreditzins","Monatliche Zahlung","Monatliche Betriebskosten","Monatliche Gesamtkosten","Erwarteter Wert am Ende der Kreditlaufzeit","Jährliche lineare Abschreibung","Monatliche lineare Abschreibung","Aktueller Wert"]
[null,123,"Marke Modell","Hauptsitz","Gut","lokal",5,{"v":30000,"d":"30,000.00 €"},{"v":5000,"d":"5,000.00 €"},{"$f":"DATE(YEAR(TODAY())-2, 1,1)","v":"2016-01-01"},4,{"v":0.1,"d":"10.00%"},{"$f":"IFERROR(IF(AND(Daten[[#This Row],[Anfangswert]]>0,Daten[[#This Row],[Anfangswert]]<>Daten[[#This Row],[Anzahlung]]),-1*PMT(Daten[[#This Row],[Kreditzins]]/12,Daten[[#This Row],[Kreditlaufzeit\nin Jahren]]*12,Daten[[#This Row],[Anfangswert]]-Daten[[#This Row],[Anzahlung]]),0),0)","v":{"v":634.0645858686797,"d":"634.06 €"}},{"v":200,"d":"200.00 €"},{"$f":"IFERROR(Daten[[#This Row],[Monatliche Betriebskosten]]+Daten[[#This Row],[Monatliche Zahlung]],\"\")","v":{"v":834.0645858686797,"d":"834.06 €"}},{"v":20000,"d":"20,000.00 €"},{"$f":"IFERROR(IF(Daten[[#This Row],[Anfangswert]]>0,SLN(Daten[[#This Row],[Anfangswert]],Daten[[#This Row],[Erwarteter Wert am Ende der Kreditlaufzeit]],Daten[[#This Row],[Verbleibende Betriebszeit (Jahre) ]]),0),0)","v":{"v":2000,"d":"2,000.00 €"}},{"$f":"IFERROR(Daten[[#This Row],[Jährliche lineare Abschreibung]]/12,0)","v":{"v":166.66666666666666,"d":"166.67 €"}},{"$f":"IFERROR(Daten[[#This Row],[Anfangswert]]-(Daten[[#This Row],[Jährliche lineare Abschreibung]]*((TODAY()-Daten[[#This Row],[Kauf- oder\nMietdatum]])/365)),0)","v":{"v":25013.698630136987,"d":"25,013.70 €"}}]
[null,456,"Marke Modell","Hauptsitz","Ausgezeichnet","lokal",3,{"v":5000,"d":"5,000.00 €"},{"v":5000,"d":"5,000.00 €"},{"$f":"DATE(YEAR(TODAY())-1, 1,1)","v":"2017-01-01"},null,null,{"$f":"IFERROR(IF(AND(Daten[[#This Row],[Anfangswert]]>0,Daten[[#This Row],[Anfangswert]]<>Daten[[#This Row],[Anzahlung]]),-1*PMT(Daten[[#This Row],[Kreditzins]]/12,Daten[[#This Row],[Kreditlaufzeit\nin Jahren]]*12,Daten[[#This Row],[Anfangswert]]-Daten[[#This Row],[Anzahlung]]),0),0)","v":{"v":0,"d":"0.00 €"}},{"v":20,"d":"20.00 €"},{"$f":"IFERROR(Daten[[#This Row],[Monatliche Betriebskosten]]+Daten[[#This Row],[Monatliche Zahlung]],\"\")","v":{"v":20,"d":"20.00 €"}},null,{"$f":"IFERROR(IF(Daten[[#This Row],[Anfangswert]]>0,SLN(Daten[[#This Row],[Anfangswert]],Daten[[#This Row],[Erwarteter Wert am Ende der Kreditlaufzeit]],Daten[[#This Row],[Verbleibende Betriebszeit (Jahre) ]]),0),0)","v":{"v":1666.6666666666667,"d":"1,666.67 €"}},{"$f":"IFERROR(Daten[[#This Row],[Jährliche lineare Abschreibung]]/12,0)","v":{"v":138.88888888888889,"d":"138.89 €"}},{"$f":"IFERROR(Daten[[#This Row],[Anfangswert]]-(Daten[[#This Row],[Jährliche lineare Abschreibung]]*((TODAY()-Daten[[#This Row],[Kauf- oder\nMietdatum]])/365)),0)","v":{"v":2515.981735159817,"d":"2,515.98 €"}}]
[null,789,"Marke Modell","Ostküste","Befriedigend","lokal",6,{"v":50000,"d":"50,000.00 €"},{"v":20000,"d":"20,000.00 €"},{"$f":"TODAY()","v":"2018-06-29"},5,{"v":0.05,"d":"5.00%"},{"$f":"IFERROR(IF(AND(Daten[[#This Row],[Anfangswert]]>0,Daten[[#This Row],[Anfangswert]]<>Daten[[#This Row],[Anzahlung]]),-1*PMT(Daten[[#This Row],[Kreditzins]]/12,Daten[[#This Row],[Kreditlaufzeit\nin Jahren]]*12,Daten[[#This Row],[Anfangswert]]-Daten[[#This Row],[Anzahlung]]),0),0)","v":{"v":566.137009320328,"d":"566.14 €"}},{"v":40,"d":"40.00 €"},{"$f":"IFERROR(Daten[[#This Row],[Monatliche Betriebskosten]]+Daten[[#This Row],[Monatliche Zahlung]],\"\")","v":{"v":606.137009320328,"d":"606.14 €"}},{"v":1500,"d":"1,500.00 €"},{"$f":"IFERROR(IF(Daten[[#This Row],[Anfangswert]]>0,SLN(Daten[[#This Row],[Anfangswert]],Daten[[#This Row],[Erwarteter Wert am Ende der Kreditlaufzeit]],Daten[[#This Row],[Verbleibende Betriebszeit (Jahre) ]]),0),0)","v":{"v":8083.333333333333,"d":"8,083.33 €"}},{"$f":"IFERROR(Daten[[#This Row],[Jährliche lineare Abschreibung]]/12,0)","v":{"v":673.6111111111111,"d":"673.61 €"}},{"$f":"IFERROR(Daten[[#This Row],[Anfangswert]]-(Daten[[#This Row],[Jährliche lineare Abschreibung]]*((TODAY()-Daten[[#This Row],[Kauf- oder\nMietdatum]])/365)),0)","v":{"v":50000,"d":"50,000.00 €"}}]
[{"$nulls":12},{"$f":"IFERROR(IF(AND(Daten[[#This Row],[Anfangswert]]>0,Daten[[#This Row],[Anfangswert]]<>Daten[[#This Row],[Anzahlung]]),-1*PMT(Daten[[#This Row],[Kreditzins]]/12,Daten[[#This Row],[Kreditlaufzeit\nin Jahren]]*12,Daten[[#This Row],[Anfangswert]]-Daten[[#This Row],[Anzahlung]]),0),0)","v":{"v":0,"d":"0.00 €"}},null,{"$f":"IFERROR(Daten[[#This Row],[Monatliche Betriebskosten]]+Daten[[#This Row],[Monatliche Zahlung]],\"\")","v":{"v":0,"d":"0.00 €"}},null,{"$f":"IFERROR(IF(Daten[[#This Row],[Anfangswert]]>0,SLN(Daten[[#This Row],[Anfangswert]],Daten[[#This Row],[Erwarteter Wert am Ende der Kreditlaufzeit]],Daten[[#This Row],[Verbleibende Betriebszeit (Jahre) ]]),0),0)","v":{"v":0,"d":"0.00 €"}},{"$f":"IFERROR(Daten[[#This Row],[Jährliche lineare Abschreibung]]/12,0)","v":{"v":0,"d":"0.00 €"}},{"$f":"IFERROR(Daten[[#This Row],[Anfangswert]]-(Daten[[#This Row],[Jährliche lineare Abschreibung]]*((TODAY()-Daten[[#This Row],[Kauf- oder\nMietdatum]])/365)),0)","v":{"v":0,"d":"0.00 €"}}]
[{"$nulls":12},{"$f":"IFERROR(IF(AND(Daten[[#This Row],[Anfangswert]]>0,Daten[[#This Row],[Anfangswert]]<>Daten[[#This Row],[Anzahlung]]),-1*PMT(Daten[[#This Row],[Kreditzins]]/12,Daten[[#This Row],[Kreditlaufzeit\nin Jahren]]*12,Daten[[#This Row],[Anfangswert]]-Daten[[#This Row],[Anzahlung]]),0),0)","v":{"v":0,"d":"0.00 €"}},null,{"$f":"IFERROR(Daten[[#This Row],[Monatliche Betriebskosten]]+Daten[[#This Row],[Monatliche Zahlung]],\"\")","v":{"v":0,"d":"0.00 €"}},null,{"$f":"IFERROR(IF(Daten[[#This Row],[Anfangswert]]>0,SLN(Daten[[#This Row],[Anfangswert]],Daten[[#This Row],[Erwarteter Wert am Ende der Kreditlaufzeit]],Daten[[#This Row],[Verbleibende Betriebszeit (Jahre) ]]),0),0)","v":{"v":0,"d":"0.00 €"}},{"$f":"IFERROR(Daten[[#This Row],[Jährliche lineare Abschreibung]]/12,0)","v":{"v":0,"d":"0.00 €"}},{"$f":"IFERROR(Daten[[#This Row],[Anfangswert]]-(Daten[[#This Row],[Jährliche lineare Abschreibung]]*((TODAY()-Daten[[#This Row],[Kauf- oder\nMietdatum]])/365)),0)","v":{"v":0,"d":"0.00 €"}}]